[Event "*** SCC Grand Prix: Titled Tuesday Blitz"]
[Site "Chess.com"]
[Date "2020.06.23"]
[Round "6"]
[White "stolencandy13"]
[Black "stanyga"]
[Result "0-1"]
[WhiteElo "2423"]
[BlackElo "2604"]
[TimeControl "180+1"]
[EndTime "11:07:17 PDT"]
[Termination "stanyga won by resignation"]

1. e4 {[%clk 0:03:00.9]} 1... e5 {[%clk 0:02:57.3]} 2. Nf3 {[%clk 0:02:47]} 2...
Nc6 {[%clk 0:02:48.6]} 3. Nc3 {[%clk 0:02:46.1]} 3... Nf6 {[%clk 0:02:43.8]} 4.
d4 {[%clk 0:02:46]} 4... exd4 {[%clk 0:02:43.3]} 5. Nxd4 {[%clk 0:02:46.9]} 5...
Bb4 {[%clk 0:02:43]} 6. Nxc6 {[%clk 0:02:46.5]} 6... bxc6 {[%clk 0:02:43]} 7.
Bd3 {[%clk 0:02:43.4]} 7... d5 {[%clk 0:02:42.8]} 8. exd5 {[%clk 0:02:44.3]}
8... cxd5 {[%clk 0:02:42.2]} 9. O-O {[%clk 0:02:44.2]} 9... O-O {[%clk
0:02:41.9]} 10. h3 {[%clk 0:02:44.4]} 10... h6 {[%clk 0:02:37]} 11. Bf4 {[%clk
0:02:37.3]} 11... c6 {[%clk 0:02:31.4]} 12. Qf3 {[%clk 0:02:30.1]} 12... Bd6
{[%clk 0:02:30.8]} 13. Ne2 {[%clk 0:02:29.4]} 13... Rb8 {[%clk 0:02:28.6]} 14.
b3 {[%clk 0:02:26.6]} 14... Re8 {[%clk 0:02:27.9]} 15. Rfe1 {[%clk 0:02:24]}
15... Qc7 {[%clk 0:01:50.3]} 16. Bxh6 {[%clk 0:02:16.1]} 16... Be5 {[%clk
0:01:38.2]} 17. Bf4 {[%clk 0:02:08.1]} 17... Rb4 {[%clk 0:01:36.2]} 18. c4
{[%clk 0:02:00.9]} 18... Ba6 {[%clk 0:01:29.8]} 19. Rac1 {[%clk 0:01:34.3]}
19... dxc4 {[%clk 0:01:17.7]} 20. Bxc4 {[%clk 0:01:26.8]} 20... Bxc4 {[%clk
0:01:16.7]} 21. bxc4 {[%clk 0:01:25.8]} 21... Bxf4 {[%clk 0:01:15.1]} 22. Qxf4
{[%clk 0:01:20.9]} 22... Qxf4 {[%clk 0:01:13.4]} 23. Nxf4 {[%clk 0:01:21.8]}
23... Rxe1+ {[%clk 0:01:14]} 24. Rxe1 {[%clk 0:01:22]} 24... Rxc4 {[%clk
0:01:14.4]} 25. Nd3 {[%clk 0:01:18.4]} 25... Rc3 {[%clk 0:01:05.5]} 26. Ne5
{[%clk 0:01:05.1]} 26... Rc2 {[%clk 0:00:57.7]} 27. Kf1 {[%clk 0:01:02]} 27...
c5 {[%clk 0:00:32.7]} 28. Re2 {[%clk 0:01:01.7]} 28... Rc1+ {[%clk 0:00:32.6]}
29. Re1 {[%clk 0:01:02]} 29... Rc2 {[%clk 0:00:32.8]} 30. Re2 {[%clk 0:01:02.1]}
30... Rc3 {[%clk 0:00:32.9]} 31. Re3 {[%clk 0:00:54]} 31... Rxe3 {[%clk
0:00:30.8]} 32. fxe3 {[%clk 0:00:54.9]} 32... Nd5 {[%clk 0:00:31]} 33. Ke2
{[%clk 0:00:40]} 33... Nc3+ {[%clk 0:00:29.6]} 34. Kd3 {[%clk 0:00:39.9]} 34...
Nxa2 {[%clk 0:00:29.9]} 35. Kc4 {[%clk 0:00:40.1]} 35... f6 {[%clk 0:00:27.5]}
36. Nc6 {[%clk 0:00:38.1]} 36... a6 {[%clk 0:00:25.6]} 37. Kxc5 {[%clk
0:00:36.8]} 37... Kf7 {[%clk 0:00:24.6]} 38. Kb6 {[%clk 0:00:30]} 38... Ke6
{[%clk 0:00:18.3]} 39. Kxa6 {[%clk 0:00:28.6]} 39... Kd5 {[%clk 0:00:18.3]} 40.
Ne7+ {[%clk 0:00:22.1]} 40... Ke4 {[%clk 0:00:18.2]} 41. g4 {[%clk 0:00:22.2]}
41... Nb4+ {[%clk 0:00:16.4]} 42. Kb5 {[%clk 0:00:21.8]} 42... Nc2 {[%clk
0:00:12.1]} 43. Nf5 {[%clk 0:00:20.5]} 43... g6 {[%clk 0:00:11.4]} 44. Ne7
{[%clk 0:00:19.7]} 44... g5 {[%clk 0:00:11.4]} 45. Ng8 {[%clk 0:00:16]} 45...
Ke5 {[%clk 0:00:11.3]} 46. e4 {[%clk 0:00:16.1]} 46... Nd4+ {[%clk 0:00:10.2]}
47. Kc4 {[%clk 0:00:15.3]} 47... Ne2 {[%clk 0:00:09.8]} 48. Kd3 {[%clk
0:00:10.1]} 48... Nf4+ {[%clk 0:00:09.6]} 49. Ke3 {[%clk 0:00:09.5]} 49... Nxh3
{[%clk 0:00:09.8]} 50. Ne7 {[%clk 0:00:08.2]} 50... Nf4 {[%clk 0:00:10.3]} 51.
Ng6+ {[%clk 0:00:07.5]} 51... Nxg6 {[%clk 0:00:10]} 0-1

[Event "*** SCC Grand Prix: Titled Tuesday Blitz"]
[Site "Chess.com"]
[Date "2020.06.23"]
[Round "6"]
[White "annamaja"]
[Black "RitvarsReimanis"]
[Result "0-1"]
[WhiteElo "2237"]
[BlackElo "2554"]
[TimeControl "180+1"]
[EndTime "11:07:17 PDT"]
[Termination "RitvarsReimanis won by resignation"]

1. e4 {[%clk 0:03:00.9]} 1... c5 {[%clk 0:02:50.7]} 2. Nf3 {[%clk 0:03:00.9]}
2... Nc6 {[%clk 0:02:50.5]} 3. d4 {[%clk 0:03:01.4]} 3... cxd4 {[%clk
0:02:51.4]} 4. Nxd4 {[%clk 0:03:02.1]} 4... Nf6 {[%clk 0:02:52.1]} 5. Nc3 {[%clk
0:03:02.5]} 5... e5 {[%clk 0:02:52.3]} 6. Ndb5 {[%clk 0:03:02.9]} 6... d6 {[%clk
0:02:52.5]} 7. Bg5 {[%clk 0:03:02.9]} 7... a6 {[%clk 0:02:52.5]} 8. Na3 {[%clk
0:03:03]} 8... b5 {[%clk 0:02:52.8]} 9. Nd5 {[%clk 0:03:03]} 9... Be7 {[%clk
0:02:53.4]} 10. Bxf6 {[%clk 0:03:03.4]} 10... Bxf6 {[%clk 0:02:54.3]} 11. c3
{[%clk 0:03:02.2]} 11... Bg5 {[%clk 0:02:54.3]} 12. Nc2 {[%clk 0:03:02.6]} 12...
Rb8 {[%clk 0:02:54.8]} 13. Nce3 {[%clk 0:02:54.4]} 13... Bxe3 {[%clk 0:02:51.2]}
14. Nxe3 {[%clk 0:02:54.3]} 14... O-O {[%clk 0:02:50.6]} 15. Be2 {[%clk
0:02:53.2]} 15... Be6 {[%clk 0:02:44]} 16. Bg4 {[%clk 0:02:50.4]} 16... Qb6
{[%clk 0:02:40]} 17. Bxe6 {[%clk 0:02:38.6]} 17... fxe6 {[%clk 0:02:39.1]} 18.
Qxd6 {[%clk 0:02:38.8]} 18... Rf6 {[%clk 0:02:27.2]} 19. Qd3 {[%clk 0:02:12.3]}
19... Rd8 {[%clk 0:02:24.7]} 20. Qe2 {[%clk 0:02:12.5]} 20... Rf4 {[%clk
0:02:13.2]} 21. Qc2 {[%clk 0:01:47.1]} 21... Nd4 {[%clk 0:01:41.1]} 22. cxd4
{[%clk 0:01:36.5]} 22... exd4 {[%clk 0:01:42]} 23. O-O-O {[%clk 0:00:56.2]}
23... dxe3 {[%clk 0:01:29.3]} 24. Rxd8+ {[%clk 0:00:55.7]} 24... Qxd8 {[%clk
0:01:30.2]} 25. fxe3 {[%clk 0:00:56.3]} 25... Rf7 {[%clk 0:01:29.3]} 26. Rd1
{[%clk 0:00:52.6]} 26... Qb8 {[%clk 0:01:19.2]} 27. Kb1 {[%clk 0:00:48]} 27...
h6 {[%clk 0:01:16]} 28. Qc6 {[%clk 0:00:43.5]} 28... Qe5 {[%clk 0:01:10]} 29.
Qxa6 {[%clk 0:00:11.9]} 29... Qxe4+ {[%clk 0:00:49.3]} 30. Ka1 {[%clk
0:00:12.2]} 30... Qd3 {[%clk 0:00:38.7]} 31. Qc8+ {[%clk 0:00:08.3]} 31... Kh7
{[%clk 0:00:38.9]} 32. Qc1 {[%clk 0:00:06.9]} 32... Rc7 {[%clk 0:00:13.7]} 33.
Qb1 {[%clk 0:00:04.7]} 33... Qc2 {[%clk 0:00:12.7]} 34. Qxc2+ {[%clk 0:00:03.8]}
34... Rxc2 {[%clk 0:00:13.6]} 35. Rg1 {[%clk 0:00:03]} 35... Re2 {[%clk
0:00:13.2]} 36. a3 {[%clk 0:00:03.1]} 36... Kg6 {[%clk 0:00:13]} 37. Ka2 {[%clk
0:00:02.9]} 37... Kf5 {[%clk 0:00:13.5]} 38. Kb3 {[%clk 0:00:03.1]} 38... Rxe3+
{[%clk 0:00:14]} 39. Kb4 {[%clk 0:00:03.5]} 39... Re2 {[%clk 0:00:14.5]} 40. b3
{[%clk 0:00:03.9]} 40... Re3 {[%clk 0:00:14.3]} 41. Kxb5 {[%clk 0:00:03.7]}
41... Rxb3+ {[%clk 0:00:14.3]} 42. Ka4 {[%clk 0:00:04.6]} 42... Rb2 {[%clk
0:00:14.8]} 43. h3 {[%clk 0:00:04.1]} 43... e5 {[%clk 0:00:15]} 44. Rf1+ {[%clk
0:00:02.7]} 44... Ke6 {[%clk 0:00:14.3]} 45. g4 {[%clk 0:00:02.5]} 45... e4
{[%clk 0:00:13.6]} 46. h4 {[%clk 0:00:02.4]} 46... e3 {[%clk 0:00:13.4]} 47. Re1
{[%clk 0:00:01.9]} 47... e2 {[%clk 0:00:13]} 48. g5 {[%clk 0:00:01.8]} 48... h5
{[%clk 0:00:11.9]} 49. Ka5 {[%clk 0:00:02]} 49... Kf5 {[%clk 0:00:09.7]} 50. a4
{[%clk 0:00:01.1]} 50... Ke4 {[%clk 0:00:10]} 51. Ka6 {[%clk 0:00:01.8]} 51...
Kf3 {[%clk 0:00:09.1]} 52. a5 {[%clk 0:00:01.8]} 52... Kf2 {[%clk 0:00:09.4]}
53. Rh1 {[%clk 0:00:01.6]} 53... e1=Q {[%clk 0:00:09.2]} 54. Rxe1 {[%clk
0:00:02.2]} 54... Kxe1 {[%clk 0:00:08.9]} 55. Ka7 {[%clk 0:00:02.9]} 55... Kf2
{[%clk 0:00:09]} 56. a6 {[%clk 0:00:03.4]} 56... Kg3 {[%clk 0:00:09.1]} 57. Ka8
{[%clk 0:00:04.1]} 57... Ra2 {[%clk 0:00:08.6]} 58. a7 {[%clk 0:00:05]} 58...
Kxh4 {[%clk 0:00:08.8]} 59. g6 {[%clk 0:00:05.9]} 59... Kg5 {[%clk 0:00:08.8]}
60. Kb7 {[%clk 0:00:06]} 60... Rxa7+ {[%clk 0:00:09.3]} 61. Kxa7 {[%clk
0:00:06.4]} 61... Kxg6 {[%clk 0:00:10.2]} 0-1

[Event "*** SCC Grand Prix: Titled Tuesday Blitz"]
[Site "Chess.com"]
[Date "2020.06.23"]
[Round "6"]
[White "Sviridov_Valery"]
[Black "topotun"]
[Result "1/2-1/2"]
[WhiteElo "2846"]
[BlackElo "2710"]
[TimeControl "180+1"]
[EndTime "11:07:19 PDT"]
[Termination "Game drawn by agreement"]

1. Nf3 {[%clk 0:02:58.6]} 1... c5 {[%clk 0:02:56.8]} 2. g3 {[%clk 0:02:58.3]}
2... Nc6 {[%clk 0:02:57.1]} 3. Bg2 {[%clk 0:02:58.4]} 3... g6 {[%clk 0:02:57.5]}
4. O-O {[%clk 0:02:58.4]} 4... Bg7 {[%clk 0:02:57.7]} 5. c4 {[%clk 0:02:59]}
5... d6 {[%clk 0:02:57.2]} 6. Nc3 {[%clk 0:02:58.9]} 6... Nf6 {[%clk 0:02:57.2]}
7. d4 {[%clk 0:02:58.6]} 7... cxd4 {[%clk 0:02:58.1]} 8. Nxd4 {[%clk 0:02:59.2]}
8... Bd7 {[%clk 0:02:58.7]} 9. Nc2 {[%clk 0:02:58.9]} 9... Qc8 {[%clk
0:02:58.8]} 10. b3 {[%clk 0:02:58.2]} 10... Bh3 {[%clk 0:02:57.7]} 11. Bb2
{[%clk 0:02:58.7]} 11... h5 {[%clk 0:02:57.9]} 12. Bxh3 {[%clk 0:02:50.6]} 12...
Qxh3 {[%clk 0:02:57.2]} 13. f3 {[%clk 0:02:51.5]} 13... h4 {[%clk 0:02:39.1]}
14. g4 {[%clk 0:02:50.2]} 14... Nxg4 {[%clk 0:02:39.4]} 15. fxg4 {[%clk
0:02:51.1]} 15... Bxc3 {[%clk 0:02:39.1]} 16. Bxc3 {[%clk 0:02:21.7]} 16... Qxc3
{[%clk 0:02:40]} 17. Qd3 {[%clk 0:02:21.3]} 17... Qxd3 {[%clk 0:02:34.7]} 18.
exd3 {[%clk 0:02:22.2]} 18... Ne5 {[%clk 0:02:35.3]} 19. Nb4 {[%clk 0:02:21.9]}
19... Nxg4 {[%clk 0:01:51.8]} 20. Rae1 {[%clk 0:02:20.4]} 20... Rc8 {[%clk
0:01:33.9]} 21. d4 {[%clk 0:02:13.4]} 21... h3 {[%clk 0:01:21.6]} 22. Nd5 {[%clk
0:01:50.7]} 22... e6 {[%clk 0:01:21.1]} 23. Rf4 {[%clk 0:01:51.2]} 23... Nh6
{[%clk 0:01:01.3]} 24. Rh4 {[%clk 0:01:51.2]} 24... Kf8 {[%clk 0:00:56.3]} 25.
Ne3 {[%clk 0:01:47.6]} 25... Kg7 {[%clk 0:00:50.9]} 26. Rxh3 {[%clk 0:01:43.5]}
26... Nf5 {[%clk 0:00:50.9]} 27. Nxf5+ {[%clk 0:01:40.6]} 27... gxf5 {[%clk
0:00:50.5]} 28. Rxh8 {[%clk 0:01:38.4]} 28... Rxh8 {[%clk 0:00:51.4]} 29. d5
{[%clk 0:01:38.8]} 29... Kf6 {[%clk 0:00:51.5]} 30. dxe6 {[%clk 0:01:19.6]}
30... fxe6 {[%clk 0:00:50.9]} 31. Rd1 {[%clk 0:01:20.5]} 31... Ke5 {[%clk
0:00:51]} 32. Re1+ {[%clk 0:01:19.5]} 32... Kf6 {[%clk 0:00:51]} 33. Rd1 {[%clk
0:01:20.2]} 33... Rd8 {[%clk 0:00:48.8]} 34. Kf2 {[%clk 0:01:14.1]} 34... d5
{[%clk 0:00:49.1]} 35. Rd4 {[%clk 0:01:02.2]} 35... Rh8 {[%clk 0:00:36.4]} 36.
cxd5 {[%clk 0:00:48.8]} 36... Rxh2+ {[%clk 0:00:35.7]} 37. Kg3 {[%clk
0:00:49.2]} 37... Rh7 {[%clk 0:00:24.9]} 38. dxe6 {[%clk 0:00:46.8]} 38... Kxe6
{[%clk 0:00:25.8]} 39. Rd8 {[%clk 0:00:46.2]} 39... Rd7 {[%clk 0:00:24.8]} 40.
Ra8 {[%clk 0:00:44.3]} 40... a6 {[%clk 0:00:24.1]} 41. Kf4 {[%clk 0:00:44.6]}
41... Rd4+ {[%clk 0:00:24.2]} 42. Ke3 {[%clk 0:00:45.1]} 42... Re4+ {[%clk
0:00:24.6]} 43. Kf3 {[%clk 0:00:45.5]} 43... Rb4 {[%clk 0:00:22.7]} 44. Rd8
{[%clk 0:00:42.5]} 44... a5 {[%clk 0:00:21.3]} 45. Ra8 {[%clk 0:00:41.6]} 45...
b6 {[%clk 0:00:20.9]} 46. Rb8 {[%clk 0:00:39.6]} 46... Ke5 {[%clk 0:00:19.7]}
47. Re8+ {[%clk 0:00:21.5]} 47... Kd4 {[%clk 0:00:18.7]} 48. Kf4 {[%clk
0:00:22.4]} 48... Kc3+ {[%clk 0:00:18.8]} 49. Kxf5 {[%clk 0:00:21.9]} 49... Kb2
{[%clk 0:00:19.1]} 50. Re2+ {[%clk 0:00:21.7]} 50... Ka3 {[%clk 0:00:19.3]} 51.
Ke5 {[%clk 0:00:22]} 51... b5 {[%clk 0:00:16]} 52. Kd5 {[%clk 0:00:22]} 52... a4
{[%clk 0:00:16.5]} 53. bxa4 {[%clk 0:00:22.9]} 53... bxa4 {[%clk 0:00:17.2]} 54.
Kc5 {[%clk 0:00:21.4]} 54... Rb2 {[%clk 0:00:16.7]} 55. Re4 {[%clk 0:00:14.3]}
55... Rxa2 {[%clk 0:00:15.4]} 56. Kb5 {[%clk 0:00:14.7]} 56... Rb2+ {[%clk
0:00:14.5]} 57. Ka5 {[%clk 0:00:14.7]} 57... Rc2 {[%clk 0:00:13.8]} 58. Rxa4+
{[%clk 0:00:15]} 58... Kb2 {[%clk 0:00:14.7]} 59. Rb4+ {[%clk 0:00:15.9]} 59...
Kc1 {[%clk 0:00:14.2]} 60. Rb5 {[%clk 0:00:16.8]} 60... Ra2+ {[%clk 0:00:13.4]}
1/2-1/2

[Event "*** SCC Grand Prix: Titled Tuesday Blitz"]
[Site "Chess.com"]
[Date "2020.06.23"]
[Round "6"]
[White "AndrewDGreen"]
[Black "tamarozi99"]
[Result "1-0"]
[WhiteElo "2302"]
[BlackElo "2072"]
[TimeControl "180+1"]
[EndTime "11:07:20 PDT"]
[Termination "AndrewDGreen won by resignation"]

1. d4 {[%clk 0:03:00.9]} 1... Nf6 {[%clk 0:02:59.3]} 2. Nf3 {[%clk 0:03:01]}
2... g6 {[%clk 0:02:58.9]} 3. Nc3 {[%clk 0:03:00.8]} 3... d5 {[%clk 0:02:58.1]}
4. Bf4 {[%clk 0:03:00.3]} 4... Bg7 {[%clk 0:02:58]} 5. e3 {[%clk 0:03:00.8]}
5... O-O {[%clk 0:02:57.8]} 6. Be2 {[%clk 0:03:01]} 6... Nbd7 {[%clk 0:02:56.2]}
7. Ne5 {[%clk 0:02:40.1]} 7... c5 {[%clk 0:02:44.3]} 8. O-O {[%clk 0:02:38.6]}
8... a6 {[%clk 0:02:43.1]} 9. a4 {[%clk 0:02:35.7]} 9... c4 {[%clk 0:02:40.3]}
10. a5 {[%clk 0:02:30.9]} 10... e6 {[%clk 0:02:26.3]} 11. h3 {[%clk 0:02:28.5]}
11... b5 {[%clk 0:02:25.6]} 12. axb6 {[%clk 0:02:26.5]} 12... Qxb6 {[%clk
0:02:18.3]} 13. Na4 {[%clk 0:02:17.3]} 13... Qb7 {[%clk 0:02:18.2]} 14. Bh2
{[%clk 0:02:13.7]} 14... Ne4 {[%clk 0:01:55.8]} 15. f3 {[%clk 0:01:59.6]} 15...
Nd6 {[%clk 0:01:52.4]} 16. Nxd7 {[%clk 0:01:52.7]} 16... Qxd7 {[%clk 0:01:47.9]}
17. Nb6 {[%clk 0:01:52.3]} 17... Qc6 {[%clk 0:01:46.2]} 18. Nxa8 {[%clk
0:01:52.2]} 18... Bb7 {[%clk 0:01:46.4]} 19. Qd2 {[%clk 0:01:31.3]} 19... Rxa8
{[%clk 0:01:40.7]} 20. Qb4 {[%clk 0:01:21.7]} 20... Bf8 {[%clk 0:01:30.1]} 21.
Qa4 {[%clk 0:01:19.7]} 21... Qb6 {[%clk 0:01:24.6]} 22. b3 {[%clk 0:01:14.4]}
22... Bc6 {[%clk 0:01:19.5]} 23. Qa5 {[%clk 0:01:13]} 23... Qxa5 {[%clk
0:00:44.7]} 24. Rxa5 {[%clk 0:01:13.9]} 24... Bb5 {[%clk 0:00:42.4]} 25. bxc4
{[%clk 0:01:11.6]} 25... Nxc4 {[%clk 0:00:36.8]} 26. Bxc4 {[%clk 0:01:08.4]}
26... Bxc4 {[%clk 0:00:37.7]} 27. Rb1 {[%clk 0:01:08.2]} 27... h5 {[%clk
0:00:27.7]} 28. c3 {[%clk 0:01:08.1]} 28... Bh6 {[%clk 0:00:21.4]} 29. Kf2
{[%clk 0:01:07.4]} 29... Kh7 {[%clk 0:00:17.5]} 30. Rb8 {[%clk 0:01:05]} 30...
Ra7 {[%clk 0:00:15]} 31. Bd6 {[%clk 0:00:59.9]} 31... Kg7 {[%clk 0:00:13.3]} 32.
Bf8+ {[%clk 0:00:56.1]} 32... Kh7 {[%clk 0:00:12.8]} 33. Bxh6 {[%clk 0:00:56.3]}
33... Kxh6 {[%clk 0:00:13.7]} 34. Rb6 {[%clk 0:00:52.8]} 34... Kg7 {[%clk
0:00:12.9]} 35. g4 {[%clk 0:00:51.5]} 35... hxg4 {[%clk 0:00:11.6]} 36. fxg4
{[%clk 0:00:50.3]} 36... g5 {[%clk 0:00:09.9]} 37. Kg3 {[%clk 0:00:50.1]} 37...
Kg6 {[%clk 0:00:08]} 38. Rb8 {[%clk 0:00:46.4]} 38... Kg7 {[%clk 0:00:06.7]} 39.
h4 {[%clk 0:00:45.4]} 39... gxh4+ {[%clk 0:00:06.4]} 40. Kxh4 {[%clk 0:00:46.3]}
40... Bd3 {[%clk 0:00:06.3]} 41. g5 {[%clk 0:00:40.5]} 41... Bc4 {[%clk
0:00:05.6]} 42. Kg4 {[%clk 0:00:35.3]} 42... Bd3 {[%clk 0:00:05.7]} 43. Kf4
{[%clk 0:00:35.1]} 43... Bc4 {[%clk 0:00:05.5]} 44. e4 {[%clk 0:00:31.9]} 44...
dxe4 {[%clk 0:00:05.6]} 45. Kxe4 {[%clk 0:00:31.2]} 45... Bf1 {[%clk 0:00:04.9]}
46. Rb6 {[%clk 0:00:26.1]} 46... Bg2+ {[%clk 0:00:04.6]} 47. Kf4 {[%clk
0:00:25.5]} 47... Bf1 {[%clk 0:00:04.9]} 48. Ra1 {[%clk 0:00:23.6]} 48... Bc4
{[%clk 0:00:04.8]} 49. Rc6 {[%clk 0:00:22.9]} 49... Bd3 {[%clk 0:00:04.3]} 50.
c4 {[%clk 0:00:22.2]} 50... a5 {[%clk 0:00:04.3]} 51. Ke3 {[%clk 0:00:21.2]}
51... Bc2 {[%clk 0:00:03.5]} 52. Kd2 {[%clk 0:00:20.4]} 52... Be4 {[%clk
0:00:03.6]} 53. Rd6 {[%clk 0:00:18.9]} 53... a4 {[%clk 0:00:03.6]} 54. c5 {[%clk
0:00:17.9]} 54... Kg6 {[%clk 0:00:03.2]} 55. c6 {[%clk 0:00:17.8]} 55... Kxg5
{[%clk 0:00:03.3]} 56. Rd7 {[%clk 0:00:18.2]} 56... Ra6 {[%clk 0:00:02.8]} 57.
c7 {[%clk 0:00:18.5]} 57... Rc6 {[%clk 0:00:02.9]} 58. Rc1 {[%clk 0:00:18.3]}
58... Rxc1 {[%clk 0:00:01.5]} 59. Kxc1 {[%clk 0:00:17.6]} 59... Bb7 {[%clk
0:00:02.2]} 60. Rxf7 {[%clk 0:00:17.5]} 60... Kg6 {[%clk 0:00:01.4]} 61. Rf8
{[%clk 0:00:17.2]} 1-0

[Event "*** SCC Grand Prix: Titled Tuesday Blitz"]
[Site "Chess.com"]
[Date "2020.06.23"]
[Round "6"]
[White "GMTalks_Youtube"]
[Black "Squirlolz"]
[Result "1/2-1/2"]
[WhiteElo "2672"]
[BlackElo "2516"]
[TimeControl "180+1"]
[EndTime "11:07:28 PDT"]
[Termination "Game drawn - insufficient material"]

1. e4 {[%clk 0:03:00.9]} 1... c5 {[%clk 0:02:40.8]} 2. Nf3 {[%clk 0:02:59.5]}
2... a6 {[%clk 0:02:41]} 3. b3 {[%clk 0:02:52.9]} 3... b5 {[%clk 0:02:39.6]} 4.
a4 {[%clk 0:02:51]} 4... Bb7 {[%clk 0:02:38]} 5. axb5 {[%clk 0:02:49.1]} 5...
axb5 {[%clk 0:02:38.9]} 6. Rxa8 {[%clk 0:02:43]} 6... Bxa8 {[%clk 0:02:39.8]} 7.
Bxb5 {[%clk 0:02:38.9]} 7... Bxe4 {[%clk 0:02:39.8]} 8. O-O {[%clk 0:02:38.5]}
8... Nf6 {[%clk 0:02:39.9]} 9. Re1 {[%clk 0:02:37.9]} 9... Bc6 {[%clk
0:02:39.3]} 10. Bf1 {[%clk 0:02:27]} 10... d6 {[%clk 0:02:38.8]} 11. Bb2 {[%clk
0:02:23.5]} 11... e6 {[%clk 0:02:38]} 12. d4 {[%clk 0:02:24]} 12... Nbd7 {[%clk
0:02:20.7]} 13. dxc5 {[%clk 0:02:13.6]} 13... Nxc5 {[%clk 0:02:20.7]} 14. Nd4
{[%clk 0:02:13.1]} 14... Bd7 {[%clk 0:02:20.4]} 15. c4 {[%clk 0:02:11.8]} 15...
Be7 {[%clk 0:02:20.1]} 16. Nc3 {[%clk 0:02:10.7]} 16... O-O {[%clk 0:02:19.8]}
17. b4 {[%clk 0:02:09.9]} 17... Na6 {[%clk 0:02:17.5]} 18. b5 {[%clk 0:01:54.9]}
18... Nc5 {[%clk 0:02:16.5]} 19. g3 {[%clk 0:01:50.6]} 19... Qb6 {[%clk
0:02:07.4]} 20. Bg2 {[%clk 0:01:47.7]} 20... Re8 {[%clk 0:01:51.7]} 21. h3
{[%clk 0:01:43]} 21... h6 {[%clk 0:01:31.3]} 22. Qd2 {[%clk 0:01:23]} 22... Bf8
{[%clk 0:01:20.8]} 23. Ra1 {[%clk 0:01:20.5]} 23... e5 {[%clk 0:01:12.3]} 24.
Nc6 {[%clk 0:01:19.3]} 24... Nb3 {[%clk 0:01:10.6]} 25. Qd1 {[%clk 0:01:14.5]}
25... Nxa1 {[%clk 0:01:10.6]} 26. Qxa1 {[%clk 0:01:14.6]} 26... Be6 {[%clk
0:01:08.1]} 27. Qa4 {[%clk 0:01:11.3]} 27... Qc5 {[%clk 0:00:42.9]} 28. Bf1
{[%clk 0:01:10.5]} 28... Nd7 {[%clk 0:00:38.5]} 29. Ba3 {[%clk 0:01:09]} 29...
Qb6 {[%clk 0:00:33.5]} 30. Bc1 {[%clk 0:01:05.8]} 30... Nc5 {[%clk 0:00:26.6]}
31. Qa2 {[%clk 0:01:05.3]} 31... Qb7 {[%clk 0:00:20.5]} 32. Bg2 {[%clk
0:01:04.7]} 32... Ra8 {[%clk 0:00:11.1]} 33. Ne7+ {[%clk 0:01:00.4]} 33... Bxe7
{[%clk 0:00:09.2]} 34. Qxa8+ {[%clk 0:00:58.4]} 34... Qxa8 {[%clk 0:00:10.1]}
35. Bxa8 {[%clk 0:00:57.9]} 35... Bxc4 {[%clk 0:00:11]} 36. b6 {[%clk
0:00:57.8]} 36... Ba6 {[%clk 0:00:10.9]} 37. Nd5 {[%clk 0:00:58]} 37... Bd8
{[%clk 0:00:10.6]} 38. Be3 {[%clk 0:00:58.1]} 38... Bb7 {[%clk 0:00:10.2]} 39.
Bxb7 {[%clk 0:00:55.5]} 39... Nxb7 {[%clk 0:00:11.1]} 40. g4 {[%clk 0:00:52]}
40... f6 {[%clk 0:00:11.1]} 41. Kg2 {[%clk 0:00:50.5]} 41... Kf7 {[%clk
0:00:11.5]} 42. Kf3 {[%clk 0:00:51.2]} 42... Ke6 {[%clk 0:00:12.1]} 43. Ke4
{[%clk 0:00:51.8]} 43... g6 {[%clk 0:00:12.8]} 44. Nb4 {[%clk 0:00:49.3]} 44...
d5+ {[%clk 0:00:08.8]} 45. Kd3 {[%clk 0:00:45.4]} 45... d4 {[%clk 0:00:09.3]}
46. Bxh6 {[%clk 0:00:45.5]} 46... Bxb6 {[%clk 0:00:09.6]} 47. Kc4 {[%clk
0:00:40]} 47... f5 {[%clk 0:00:06.6]} 48. Nc6 {[%clk 0:00:37.1]} 48... Nd6+
{[%clk 0:00:05.9]} 49. Kb4 {[%clk 0:00:34.2]} 49... e4 {[%clk 0:00:05.4]} 50.
Bf4 {[%clk 0:00:29.9]} 50... d3 {[%clk 0:00:05.3]} 51. Bg3 {[%clk 0:00:25.7]}
51... Kd5 {[%clk 0:00:04.3]} 52. Ne7+ {[%clk 0:00:25]} 52... Ke6 {[%clk
0:00:04.8]} 53. Nxg6 {[%clk 0:00:24.6]} 53... fxg4 {[%clk 0:00:05]} 54. Kc3
{[%clk 0:00:22.1]} 54... gxh3 {[%clk 0:00:04.8]} 55. Nf4+ {[%clk 0:00:22.4]}
55... Kf5 {[%clk 0:00:04.7]} 56. Nxh3 {[%clk 0:00:21.1]} 56... Nb5+ {[%clk
0:00:05.2]} 57. Kd2 {[%clk 0:00:20.9]} 57... Ba5+ {[%clk 0:00:04.1]} 58. Ke3
{[%clk 0:00:20.4]} 58... Nc3 {[%clk 0:00:04.7]} 59. Nf4 {[%clk 0:00:19.6]} 59...
Nd1+ {[%clk 0:00:04.4]} 60. Kd4 {[%clk 0:00:19.5]} 60... d2 {[%clk 0:00:05]} 61.
Ng2 {[%clk 0:00:19.5]} 61... Bc3+ {[%clk 0:00:02.9]} 62. Kc4 {[%clk 0:00:19.2]}
62... Nb2+ {[%clk 0:00:02.9]} 63. Kxc3 {[%clk 0:00:19.6]} 63... d1=Q {[%clk
0:00:02.2]} 64. Ne3+ {[%clk 0:00:19.7]} 64... Ke6 {[%clk 0:00:02.7]} 65. Nxd1
{[%clk 0:00:20]} 65... Nxd1+ {[%clk 0:00:03.6]} 66. Kd4 {[%clk 0:00:20.6]} 66...
Nxf2 {[%clk 0:00:03.4]} 67. Bxf2 {[%clk 0:00:19.3]} 67... e3 {[%clk 0:00:04.3]}
68. Bxe3 {[%clk 0:00:19.4]} 1/2-1/2